fUSD/lending_fUSD_20251109
["ID","MTS","AMOUNT","RATE_DAILY","PERIOD"]
[393471818,1762702239987,-18470.49819679,0.00016667,2]
[393471819,1762702239999,-1287.72283817,0.00016667,2]
[393471820,1762702240009,-3022.99999985,0.00016667,2]
[393471825,1762702240257,-1000.0,0.00016667,2]
[393471826,1762702240269,-2035.2638137,0.00016667,2]
[393471833,1762702242735,-795.36339307,0.00016573,2]
[393471835,1762702242744,-134.06734555,0.00016667,2]
[393471837,1762702242755,-31118.26326418,0.00016667,2]
[393471838,1762702242819,-540.2822033,0.00016667,2]
[393471839,1762702242830,-4154.62886482,0.00016667,2]
[393471840,1762702242840,-500.0,0.00016673,2]
[393471841,1762702242850,-500.0,0.00016673,2]
[393471842,1762702242859,-500.0,0.00016673,2]
[393471843,1762702242867,-155.49640613,0.00016673,2]
[393471844,1762702242877,-500.0,0.00016673,2]
[393471845,1762702242886,-214.90537102,0.00016673,2]
[393471846,1762702242895,-500.0,0.00016673,2]
[393471847,1762702242906,-500.0,0.00016673,2]
[393471848,1762702242915,-500.0,0.00016673,2]
[393471849,1762702242924,-500.88687561,0.00016673,2]
[393471850,1762702242934,-177.01,0.00016685,2]
[393471851,1762702242943,-177.01,0.00016685,2]
[393471852,1762702242953,-177.01,0.00016685,2]
[393471853,1762702242962,-177.01,0.00016685,2]
[393471854,1762702242971,-177.01,0.00016685,2]
[393471855,1762702242982,-177.01,0.00016685,2]
[393471856,1762702242992,-177.01,0.00016685,2]
[393471857,1762702243002,-177.01,0.00016685,2]
[393471858,1762702243011,-100.99599528,0.00016685,2]
[393471859,1762702243026,-49.00400472,0.00016685,2]
[393471860,1762702243036,-150.0,0.00016685,2]
[393471861,1762702243045,-313.73185488,0.00016685,2]
[393471862,1762702243057,-186.26814512,0.00016685,2]
[393471863,1762702243066,-500.0,0.00016685,2]
[393471864,1762702243077,-500.0,0.00016685,2]
[393471865,1762702243086,-150.0,0.00016685,2]
[393471866,1762702243095,-79.33066457,0.00016685,2]
[393471867,1762702243107,-420.66933543,0.00016685,2]
[393471868,1762702243116,-150.0,0.00016685,2]
[393471869,1762702243126,-150.0,0.00016685,2]
[393471870,1762702243135,-391.36265001,0.0001669,2]
[393471873,1762702243331,-1111.21146799,0.0001669,2]
[393471874,1762702243342,-94.436092,0.0001669,2]
[393471875,1762702243351,-150.0,0.00016708,2]
[393471876,1762702243361,-220.52220835,0.00016708,2]
[393471877,1762702243371,-150.0,0.00016708,2]
[393471878,1762702243380,-150.0,0.00016708,2]
[393471879,1762702243390,-250.0,0.00016708,2]
[393471880,1762702243399,-778.33609668,0.0001672,2]
[393471881,1762702243413,-580.0,0.0001672,2]
[393471883,1762702243424,-238.67411332,0.0001672,2]
[393471885,1762702243433,-64.28508668,0.00016721,2]
[393471893,1762702245982,-795.36339304,0.0001672,2]
[393471894,1762702245991,-155.42239,0.00016721,2]
[393471895,1762702246003,-546.03806591,0.00016721,2]
[393471896,1762702246235,-1197.1217567,0.00016721,2]
[393471897,1762702246245,-1597.01021,0.0001675,2]
[393471898,1762702246255,-1790.2890104,0.00016752,2]
[393471899,1762702246264,-2372.8618852,0.00016757,2]
[393471900,1762702246273,-420.0,0.00016762,2]
[393471901,1762702246283,-420.0,0.00016762,2]
[393471902,1762702246292,-3393.30147948,0.00016767,2]
[393471903,1762702246302,-500.0,0.00016795,2]
[393471904,1762702246311,-150.0,0.00016822,2]
[393471905,1762702246320,-500.0,0.00016822,2]
[393471906,1762702246330,-500.0,0.00016822,2]
[393471907,1762702246344,-500.0,0.00016822,2]
[393471908,1762702246354,-150.0,0.00016822,2]
[393471909,1762702246363,-605.99056556,0.00016822,2]
[393471910,1762702246373,-154.63310994,0.00016822,2]
[393471911,1762702246383,-150.0,0.00016822,2]
[393471912,1762702246392,-166.7,0.00016827,2]
[393471913,1762702246401,-250.0,0.00016845,2]
[393471914,1762702246412,-289.2802683,0.00016845,2]
[393471915,1762702246422,-1680.0,0.00016846,2]
[393471916,1762702246432,-195.0,0.00016852,2]
[393471917,1762702246442,-151.00466367,0.00016852,2]
[393471918,1762702246452,-355.03722737,0.00016853,2]
[393471919,1762702246462,-409.91443016,0.00016853,2]
[393471920,1762702246472,-300.0,0.00016853,2]
[393471921,1762702246482,-300.0,0.00016853,2]
[393471922,1762702246491,-170.91215746,0.00016853,2]
[393471923,1762702246500,-195.0,0.00016853,2]
[393471924,1762702246510,-195.0,0.00016853,2]
[393471925,1762702246519,-250.0,0.00016853,2]
[393471926,1762702246528,-1962.86729929,0.00016868,2]
[393471927,1762702246538,-150.0,0.00016959,2]
[393471928,1762702246553,-455.45059285,0.00016959,2]
[393471929,1762702246562,-264.94975785,0.00016959,2]
[393471930,1762702246572,-500.0,0.00016959,2]
[393471931,1762702246582,-150.0,0.00016959,2]
[393471932,1762702246592,-150.0,0.00016959,2]
[393471933,1762702246602,-250.0,0.00017,2]
[393471934,1762702246611,-1962.86729929,0.00017016,2]
[393471935,1762702246622,-461.25,0.00017093,2]
[393471936,1762702246631,-150.0,0.00017096,2]
[393471937,1762702246641,-250.0,0.00017096,2]
[393471938,1762702246650,-151.42196463,0.00017096,2]
[393471939,1762702246659,-150.0,0.00017096,2]
[393471940,1762702246670,-1962.86729929,0.00017163,2]
[393471941,1762702246679,-500.0,0.00017205,2]
[393471942,1762702246689,-150.0,0.00017205,2]
[393471943,1762702246699,-500.0,0.00017205,2]
[393471944,1762702246709,-1000.0,0.00017221,2]
[393471945,1762702246718,-1000.0,0.00017221,2]
[393471946,1762702246728,-1000.0,0.00017221,2]
[393471947,1762702246737,-297.06390658,0.00017221,2]
[393471948,1762702246746,-759.58284128,0.00017221,2]
[393471949,1762702246756,-151.05,0.0001723,2]
[393471950,1762702246766,-251.96937689,0.00017233,2]
[393471951,1762702246775,-204.61057853,0.00017233,2]
[393471952,1762702246784,-1063.21,0.00017251,2]
[393471953,1762702246794,-2000.0,0.000173,2]
[393471954,1762702246803,-400.0,0.000173,6]
[393471955,1762702246813,-1141.78231928,0.00017311,2]
[393471959,1762702246937,-782.76473651,0.00017311,2]
[393471971,1762702252067,924.1,0.00013699,2]
[393472012,1762703432546,-160.0,0.0001569,2]
[393472016,1762703432556,-111.037225,0.0001576,2]
[393472019,1762703432568,-95.23231228,0.0001576,2]
[393472022,1762703432578,-1322.32092172,0.00015791,2]
[393472037,1762703432770,-6465.30907828,0.00015791,2]
[393472038,1762703432780,-1200.0,0.0001586,2]
[393472039,1762703432790,-300.0,0.00015861,2]
[393472040,1762703432800,-2424.27972092,0.00015863,2]
[393472041,1762703432995,-7609.86027908,0.00015863,2]
[393472042,1762703433006,-166.63,0.00015887,2]
[393472043,1762703433015,-1000.0,0.00015937,2]
[393472044,1762703433026,-242.49312645,0.00016329,2]
[393472045,1762703433037,-339.14812573,0.000164,2]
[393472046,1762703433047,-557.43795097,0.0001642,2]
[393472047,1762703433057,-550.0,0.00016472,2]
[393472048,1762703433067,-171.20529048,0.00016473,2]
[393472049,1762703433077,-422.89223248,0.00016473,2]
[393472050,1762703433087,-1674.61220982,0.00016473,2]
[393472051,1762703433101,-6077.29457102,0.00016473,2]
[393472052,1762703433113,-151.0,0.0001651,2]
[393472053,1762703433124,-151.0,0.0001651,2]
[393472054,1762703433134,-151.0,0.0001651,2]
[393472055,1762703433144,-151.0,0.0001651,2]
[393472056,1762703433155,-151.0,0.00016517,2]
[393472057,1762703433166,-1000.0,0.00016519,2]
[393472058,1762703433179,-500.0,0.00016519,2]
[393472059,1762703433190,-196.30970078,0.00016519,2]
[393472060,1762703433200,-195.294946,0.00016519,2]
[393472061,1762703433211,-166.88954996,0.00016519,2]
[393472062,1762703433222,-190.87,0.00016519,2]
[393472063,1762703433237,-642.66,0.00016519,2]
[393472064,1762703433247,-15825.76048363,0.0001652,2]
[393472065,1762703433260,-52221.04571034,0.0001652,2]
[393472066,1762703433271,-27166.00694486,0.0001652,2]
[393472069,1762703439454,-569.26722893,0.0001652,2]
[393472070,1762703439510,-20093.7181718,0.0001652,2]
[393472071,1762703439587,-1385.55816979,0.0001652,2]
[393472072,1762703439599,-259.36743815,0.0001652,2]
[393472076,1762703439638,-1437.76353558,0.0001652,2]
[393472077,1762703439650,-1136.418305,0.0001652,2]
[393472078,1762703439661,-2724.7365,0.0001652,2]
[393472079,1762703439672,-1122.70891671,0.0001652,2]
[393472080,1762703439726,-1814.66994,0.0001652,2]
[393472081,1762703439739,-112416.41812451,0.0001652,2]
[393472110,1762703440232,-1767.30000001,0.0001652,2]
[393472111,1762703440243,-1515.534,0.0001652,2]
[393472112,1762703440259,-3300.0,0.0001652,2]
[393472113,1762703440270,-70209.22121103,0.0001652,2]
[393472114,1762703440282,-1678.4,0.0001652,2]
[393472115,1762703440294,-1042.15,0.0001652,2]
[393472116,1762703440306,-427.5755303,0.0001652,2]
[393472117,1762703440346,-1051.83162811,0.0001652,2]
[393472118,1762703440358,-393.75864082,0.0001652,2]
[393472119,1762703440370,-100440.78952043,0.0001652,2]
[393472120,1762703440379,-359.27923267,0.00016573,2]
[393472121,1762703440389,-500.0,0.00016573,2]
[393472122,1762703440399,-500.0,0.00016573,2]
[393472123,1762703440409,-500.0,0.00016573,2]
[393472124,1762703440420,-500.0,0.00016573,2]
[393472125,1762703440429,-500.0,0.00016573,2]
[393472127,1762703440439,-500.0,0.00016573,2]
[393472129,1762703440448,-500.0,0.00016573,2]
[393472131,1762703440458,-500.0,0.00016573,2]
[393472133,1762703440468,-7751.90678077,0.00016632,2]
[393472135,1762703440478,-500.0,0.00016666,2]
[393472137,1762703440494,-422.89223244,0.00016677,2]
[393472138,1762703440504,-166.63,0.00016769,2]
[393472139,1762703440514,-7751.90678077,0.0001679,2]
[393472140,1762703440525,-857.24,0.00016798,2]
[393472141,1762703440535,-171.20529046,0.0001683,2]
[393472142,1762703440545,-422.89223244,0.00016881,2]
[393472143,1762703440555,-400.0,0.000169,6]
[393472144,1762703440564,-213.95,0.00016917,2]
[393472145,1762703440574,-301.31769438,0.00016935,2]
[393472146,1762703440584,-355.2643824,0.00016935,2]
[393472147,1762703440594,-186.69760597,0.00016935,2]
[393472148,1762703440604,-250.0,0.00016935,2]
[393472149,1762703440614,-283.97030963,0.00016935,2]
[393472150,1762703440623,-439.64200742,0.00016935,2]
[393472151,1762703440633,-7751.90678077,0.00016949,2]
[393472152,1762703440643,-2000.0,0.00017,2]
[393472153,1762703440652,-1002.14670819,0.00017,2]
[393472154,1762703440661,-698.68,0.00017041,2]
[393472155,1762703440671,-477.21,0.00017041,2]
[393472156,1762703440680,-698.95,0.00017041,2]
[393472157,1762703440690,-477.41,0.00017041,2]
[393472158,1762703440700,-698.95,0.00017041,2]
[393472159,1762703440710,-477.41,0.00017041,2]
[393472160,1762703440720,-698.95,0.00017041,2]
[393472161,1762703440732,-477.41,0.00017041,2]
[393472162,1762703440742,-477.41,0.00017041,2]
[393472163,1762703440754,-698.95,0.00017041,2]
[393472164,1762703440764,-577.21,0.00017041,2]
[393472165,1762703440774,-477.41,0.00017041,2]
[393472166,1762703440784,-477.41,0.00017041,2]
[393472167,1762703440794,-500.0,0.00017073,2]
[393472168,1762703440804,-500.0,0.00017073,2]
[393472169,1762703440813,-500.0,0.00017073,2]
[393472170,1762703440823,-160.86568994,0.00017073,2]
[393472171,1762703440832,-501.05520094,0.00017073,2]
[393472172,1762703441058,-331.91841844,0.00017073,2]
[393472173,1762703441068,-166.64496789,0.00017073,2]
[393472174,1762703441078,-502.15158628,0.00017073,2]
[393472175,1762703441088,-160.7909722,0.00017073,2]
[393472176,1762703441098,-500.0,0.00017073,2]
[393472177,1762703441107,-500.0,0.00017073,2]
[393472178,1762703441117,-501.08722389,0.00017073,2]
[393472179,1762703441126,-500.0,0.00017073,2]
[393472180,1762703441136,-501.3088807,0.00017073,2]
[393472181,1762703441146,-500.0,0.00017073,2]
[393472182,1762703441156,-500.0,0.00017073,2]
[393472183,1762703441165,-500.0,0.00017073,2]
[393472184,1762703441175,-501.56834888,0.00017073,2]
[393472185,1762703441184,-500.0,0.00017073,2]
[393472186,1762703441194,-500.0,0.00017073,2]
[393472187,1762703441203,-500.0,0.00017073,2]
[393472188,1762703441212,-556.10003407,0.00017073,2]
[393472189,1762703441222,-500.0,0.00017073,2]
[393472190,1762703441233,-500.98876132,0.00017073,2]
[393472191,1762703441243,-500.0,0.00017073,2]
[393472192,1762703441252,-511.33448116,0.00017073,2]
[393472193,1762703441261,-500.0,0.00017073,2]
[393472194,1762703441271,-500.0,0.00017073,2]
[393472195,1762703441281,-552.09018469,0.00017073,2]
[393472196,1762703441290,-500.0,0.00017073,2]
[393472197,1762703441300,-500.0,0.00017073,2]
[393472198,1762703441309,-500.0,0.00017073,2]
[393472199,1762703441320,-500.0,0.00017073,2]
[393472200,1762703441329,-500.0,0.00017073,2]
[393472201,1762703441338,-500.74682065,0.00017073,2]
[393472202,1762703441347,-500.0,0.00017073,2]
[393472203,1762703441357,-500.0,0.00017073,2]
[393472204,1762703441366,-500.0,0.00017073,2]
[393472205,1762703441375,-502.34671415,0.00017073,2]
[393472206,1762703441385,-500.0,0.00017073,2]
[393472207,1762703441395,-501.84277717,0.00017073,2]
[393472208,1762703441409,-500.0,0.00017073,2]
[393472209,1762703441419,-500.0,0.00017073,2]
[393472210,1762703441428,-500.0,0.00017073,2]
[393472211,1762703441437,-278332.5441213,0.00017074,2]
[393472212,1762703441448,-11944.9725611,0.00017074,2]
[393472213,1762703441457,-1216.8025798,0.00017074,2]
[393472214,1762703441466,-422.89223244,0.00017085,2]
[393472215,1762703441476,-7751.90678077,0.00017107,2]
[393472216,1762703441486,-1000.0,0.00017121,2]
[393472217,1762703441495,-1000.0,0.00017121,2]
[393472218,1762703441505,-1024.46659852,0.00017121,2]
[393472219,1762703441514,-177.01,0.00017178,2]
[393472220,1762703441523,-171.20529046,0.00017187,2]
[393472221,1762703441533,-1009.0,0.000172,2]
[393472222,1762703441542,-150.0,0.00017233,2]
[393472223,1762703441552,-201.5261164,0.00017233,2]
[393472224,1762703441561,-151.9492422,0.00017233,2]
[393472225,1762703441571,-150.0,0.00017233,2]
[393472226,1762703441580,-150.0,0.00017233,2]
[393472227,1762703441590,-150.0,0.00017233,2]
[393472228,1762703441600,-150.0,0.00017233,2]
[393472229,1762703441610,-150.0,0.00017233,2]
[393472230,1762703441620,-500.0,0.00017233,2]
[393472231,1762703441629,-150.0,0.00017233,2]
[393472232,1762703441639,-150.0,0.00017233,2]
[393472233,1762703441649,-500.0,0.00017233,2]
[393472234,1762703441659,-500.0,0.00017233,2]
[393472235,1762703441668,-500.0,0.00017233,2]
[393472236,1762703441678,-500.0,0.00017233,2]
[393472237,1762703441687,-500.0,0.00017233,2]
[393472238,1762703441698,-500.0,0.00017233,2]
[393472239,1762703441707,-500.0,0.00017233,2]
[393472240,1762703441717,-500.0,0.00017233,2]
[393472241,1762703441727,-168.34614064,0.00017233,2]
[393472242,1762703441739,-500.0,0.00017233,2]
[393472243,1762703441748,-150.0,0.00017233,2]
[393472244,1762703441758,-500.0,0.00017233,2]
[393472245,1762703441767,-500.0,0.00017233,2]
[393472246,1762703441777,-500.0,0.00017233,2]
[393472247,1762703441787,-500.0,0.00017233,2]
[393472248,1762703441796,-500.0,0.00017233,2]
[393472249,1762703441806,-500.0,0.00017233,2]
[393472250,1762703441816,-150.0,0.00017233,2]
[393472251,1762703441825,-150.0,0.00017233,2]
[393472252,1762703441835,-500.0,0.00017233,2]
[393472253,1762703441845,-1726.84557519,0.00017234,2]
[393472254,1762703441855,-216.10375286,0.0001725,2]
[393472255,1762703441865,-250.0,0.00017259,2]
[393472256,1762703441874,-195.0,0.00017259,2]
[393472257,1762703441884,-7751.90678077,0.00017266,2]
[393472258,1762703441894,-422.89223244,0.00017288,2]
[393472259,1762703441908,-900.0,0.000173,6]
[393472260,1762703441918,-200.0,0.00017311,2]
[393472261,1762703441928,-200.0,0.00017311,2]
[393472262,1762703441937,-420.0,0.00017344,2]
[393472263,1762703441947,-156.32912669,0.0001737,2]
[393472264,1762703441957,-150.0,0.0001737,2]
[393472265,1762703441967,-150.0,0.0001737,2]
[393472266,1762703441977,-150.0,0.0001737,2]
[393472267,1762703441988,-150.0,0.0001737,2]
[393472268,1762703441998,-150.0,0.0001737,2]
[393472269,1762703442008,-500.0,0.0001737,2]
[393472270,1762703442018,-150.0,0.0001737,2]
[393472271,1762703442027,-150.0,0.0001737,2]
[393472272,1762703442036,-500.0,0.0001737,2]
[393472273,1762703442045,-150.0,0.0001737,2]
[393472274,1762703442054,-500.0,0.0001737,2]
[393472275,1762703442063,-576.20099859,0.0001737,2]
[393472276,1762703442073,-500.0,0.0001737,2]
[393472277,1762703442082,-500.0,0.0001737,2]
[393472278,1762703442092,-500.0,0.0001737,2]
[393472279,1762703442101,-500.0,0.0001737,2]
[393472280,1762703442110,-150.0,0.0001737,2]
[393472281,1762703442119,-500.0,0.0001737,2]
[393472282,1762703442129,-415.98,0.00017398,2]
[393472283,1762703442138,-415.98,0.00017398,2]
[393472284,1762703442147,-415.98,0.00017398,2]
[393472285,1762703442157,-415.98,0.00017398,2]
[393472286,1762703442166,-415.98,0.00017398,2]
[393472287,1762703442176,-415.98,0.00017398,2]
[393472288,1762703442185,-415.98,0.00017398,2]
[393472289,1762703442194,-415.98,0.00017398,2]
[393472290,1762703442203,-1300.0,0.000174,6]
[393472291,1762703442213,-7751.90678077,0.00017424,2]
[393472292,1762703442222,-1680.0,0.0001743,2]
[393472293,1762703442232,-200.0,0.00017484,2]
[393472294,1762703442241,-422.89223244,0.00017492,2]
[393472295,1762703442251,-400.46646103,0.000175,2]
[393472296,1762703442260,-1800.0,0.000175,6]
[393472297,1762703442270,-415.98,0.00017507,2]
[393472298,1762703442279,-415.98,0.00017507,2]
[393472299,1762703442288,-415.98,0.00017507,2]
[393472300,1762703442298,-415.98,0.00017507,2]
[393472301,1762703442307,-415.98,0.00017507,2]
[393472302,1762703442316,-415.98,0.00017507,2]
[393472303,1762703442326,-415.98,0.00017507,2]
[393472304,1762703442336,-415.98,0.00017507,2]
[393472305,1762703442346,-415.98,0.00017507,2]
[393472306,1762703442356,-415.98,0.00017507,2]
[393472307,1762703442366,-415.98,0.00017507,2]
[393472308,1762703442375,-415.98,0.00017507,2]
[393472309,1762703442385,-415.98,0.00017507,2]
[393472310,1762703442395,-415.98,0.00017507,2]
[393472311,1762703442404,-415.98,0.00017507,2]
[393472312,1762703442414,-150.0,0.00017507,2]
[393472313,1762703442424,-415.98,0.00017507,2]
[393472314,1762703442433,-150.0,0.00017507,2]
[393472315,1762703442443,-415.98,0.00017507,2]
[393472316,1762703442451,-150.0,0.00017507,2]
[393472317,1762703442467,-415.98,0.00017507,2]
[393472318,1762703442476,-415.98,0.00017507,2]
[393472319,1762703442486,-415.98,0.00017507,2]
[393472320,1762703442495,-150.0,0.00017507,2]
[393472321,1762703442505,-415.98,0.00017507,2]
[393472322,1762703442514,-150.0,0.00017507,2]
[393472323,1762703442524,-415.98,0.00017507,2]
[393472324,1762703442534,-415.98,0.00017507,2]
[393472325,1762703442543,-150.0,0.00017507,2]
[393472326,1762703442552,-415.98,0.00017507,2]
[393472327,1762703442565,-150.0,0.00017507,2]
[393472328,1762703442574,-150.0,0.00017507,2]
[393472329,1762703442584,-150.0,0.00017507,2]
[393472330,1762703442593,-150.0,0.00017507,2]
[393472331,1762703442602,-500.0,0.00017507,2]
[393472332,1762703442611,-183.12149074,0.00017507,2]
[393472333,1762703442620,-150.0,0.00017507,2]
[393472334,1762703442630,-233.33506662,0.00017507,2]
[393472335,1762703442640,-150.0,0.00017507,2]
[393472337,1762703442650,-500.0,0.00017507,2]
[393472338,1762703442659,-500.0,0.00017507,2]
[393472339,1762703442668,-500.0,0.00017507,2]
[393472340,1762703442677,-500.0,0.00017507,2]
[393472341,1762703442687,-500.0,0.00017507,2]
[393472342,1762703442697,-150.0,0.00017507,2]
[393472343,1762703442707,-150.0,0.00017507,2]
[393472344,1762703442717,-171.20529046,0.00017543,2]
[393472345,1762703442726,-7751.90678077,0.00017583,2]
[393472346,1762703442738,-323.0,0.00017592,2]
[393472347,1762703442747,-500.0,0.00017599,2]
[393472348,1762703442757,-2200.0,0.000176,6]
[393472349,1762703442766,-1000.0,0.00017621,2]
[393472350,1762703442776,-1000.0,0.00017621,2]
[393472351,1762703442785,-1001.39462872,0.00017621,2]
[393472352,1762703442795,-1000.0,0.00017621,2]
[393472353,1762703442804,-500.0,0.00017621,2]
[393472354,1762703442814,-512.33896105,0.00017621,2]
[393472355,1762703442827,-500.0,0.00017621,2]
[393472356,1762703442836,-500.0,0.00017621,2]
[393472357,1762703442845,-500.0,0.00017621,2]
[393472359,1762703442855,-150.0,0.00017644,2]
[393472362,1762703442865,-150.0,0.00017644,2]
[393472363,1762703442874,-150.0,0.00017644,2]
[393472365,1762703442883,-193.33883089,0.00017644,2]
[393472366,1762703442893,-500.0,0.00017644,2]
[393472367,1762703442906,-154.60451121,0.00017644,2]
[393472368,1762703442916,-156.82732645,0.00017644,2]
[393472369,1762703442925,-500.0,0.00017644,2]
[393472370,1762703442935,-244.37088904,0.00017644,2]
[393472371,1762703442945,-500.0,0.00017644,2]
[393472372,1762703442955,-500.0,0.00017644,2]
[393472373,1762703442965,-500.0,0.00017644,2]
[393472374,1762703442975,-243.48944762,0.00017644,2]
[393472375,1762703442989,-166.63,0.00017652,2]
[393472376,1762703443000,-200.0,0.00017659,2]
[393472377,1762703443010,-220.39703715,0.00017668,2]
[393472378,1762703443019,-635.42168858,0.00017668,2]
[393472379,1762703443029,-928.3552397,0.00017681,2]
[393472380,1762703443039,-422.89223244,0.00017696,2]
[393472381,1762703443048,-400.0,0.000177,6]
[393472382,1762703443057,-306.55,0.00017781,2]
[393472383,1762703443067,-158.98498589,0.00017781,2]
[393472384,1762703443076,-230.87944646,0.00017781,2]
[393472385,1762703443085,-156.55778374,0.00017781,2]
[393472386,1762703443094,-500.0,0.00017781,2]
[393472387,1762703443103,-500.0,0.00017781,2]
[393472388,1762703443113,-500.0,0.00017781,2]
[393472389,1762703443122,-500.0,0.00017781,2]
[393472390,1762703443131,-500.0,0.00017781,2]
[393472391,1762703443140,-400.0,0.000178,6]
[393472392,1762703443149,-500.0,0.00017808,2]
[393472393,1762703443159,-2500.0,0.00017838,3]
[393472394,1762703443168,-2500.0,0.00017838,3]
[393472395,1762703443177,-2500.0,0.00017847,3]
[393472396,1762703443186,-2500.0,0.00017847,3]
[393472397,1762703443196,-2500.0,0.00017856,3]
[393472398,1762703443204,-2000.0,0.00017856,2]
[393472399,1762703443213,-200.0,0.00017856,2]
[393472400,1762703443223,-2500.0,0.00017856,3]
[393472401,1762703443232,-2500.0,0.00017865,3]
[393472402,1762703443242,-478.20968403,0.00017865,3]
[393472403,1762703443251,-2500.0,0.00017865,3]
[393472404,1762703443260,-2500.0,0.00017874,3]
[393472405,1762703443270,-2500.0,0.00017874,3]
[393472406,1762703443279,-300.0,0.00017876,2]
[393472407,1762703443288,-2500.0,0.00017882,3]
[393472408,1762703443297,-2500.0,0.00017882,3]
[393472409,1762703443306,-4543.9027,0.0001789,2]
[393472410,1762703443316,-2500.0,0.00017891,3]
[393472411,1762703443325,-2500.0,0.00017891,3]
[393472412,1762703443335,-2500.0,0.000179,3]
[393472413,1762703443344,-2500.0,0.000179,3]
[393472414,1762703443354,-529.69,0.000179,2]
[393472415,1762703443363,-2500.0,0.000179,3]
[393472416,1762703443373,-400.0,0.000179,6]
[393472417,1762703443382,-262.253714,0.000179,2]
[393472418,1762703443392,-160.539842,0.000179,2]
[393472419,1762703443401,-151.0,0.000179,2]
[393472420,1762703443411,-151.0,0.000179,2]
[393472421,1762703443420,-1813.035452,0.000179,2]
[393472422,1762703443429,-151.0,0.000179,2]
[393472423,1762703443439,-151.0,0.000179,2]
[393472424,1762703443448,-1813.035452,0.000179,2]
[393472425,1762703443457,-171.20529046,0.000179,2]
[393472426,1762703443467,-151.0,0.000179,2]
[393472427,1762703443476,-151.0,0.000179,2]
[393472428,1762703443486,-1813.035452,0.000179,2]
[393472429,1762703443496,-158.042219,0.000179,2]
[393472430,1762703443506,-1813.035452,0.000179,2]
[393472431,1762703443516,-151.0,0.000179,2]
[393472433,1762703443526,-151.0,0.000179,2]
[393472435,1762703443536,-151.0,0.000179,2]
[393472437,1762703443545,-575.479988,0.000179,2]
[393472439,1762703443554,-306.890502,0.000179,2]
[393472441,1762703443563,-151.0,0.000179,2]
[393472443,1762703443574,-306.890502,0.000179,2]
[393472445,1762703443583,-575.479988,0.000179,2]
[393472447,1762703443592,-151.0,0.000179,2]
[393472449,1762703443601,-306.890502,0.000179,2]
[393472451,1762703443611,-306.890502,0.000179,2]
[393472453,1762703443620,-575.479988,0.000179,2]
[393472454,1762703443629,-575.479988,0.000179,2]
[393472455,1762703443639,-151.0,0.000179,2]
[393472456,1762703443649,-151.0,0.000179,2]
[393472457,1762703443658,-163.721245,0.000179,2]
[393472458,1762703443668,-405.052188,0.000179,2]
[393472459,1762703443678,-151.0,0.000179,2]
[393472460,1762703443687,-405.052188,0.000179,2]
[393472461,1762703443697,-151.0,0.000179,2]
[393472462,1762703443708,-190.10232692,0.000179,3]
[393472463,1762703443718,-405.052188,0.000179,2]
[393472464,1762703443728,-405.052188,0.000179,2]
[393472465,1762703443740,-281.441467,0.000179,2]
[393472466,1762703443750,-151.0,0.000179,2]
[393472467,1762703443760,-281.441467,0.000179,2]
[393472468,1762703443769,-151.0,0.000179,2]
[393472469,1762703443779,-151.0,0.000179,2]
[393472470,1762703443788,-281.441467,0.000179,2]